lending/lending_fUSD_20251111
["ID","MTS","AMOUNT","RATE_DAILY","PERIOD"]
[393593055,1762824790360,-25000.0,0.00036453,2]
[393593056,1762824790370,-500.0,0.00036565,30]
[393593057,1762824790380,-500.0,0.00036682,30]
[393593058,1762824790391,-2654.89,0.000368,2]
[393593059,1762824790400,-300.0,0.00037011,2]
[393593060,1762824790409,-300.0,0.00037218,2]
[393593061,1762824790419,-300.0,0.00037363,2]
[393593062,1762824790428,-300.0,0.00037371,2]
[393593063,1762824790437,-300.0,0.00037386,2]
[393593064,1762824790446,-300.0,0.00037432,2]
[393593065,1762824790456,-300.0,0.00037595,2]
[393593066,1762824790467,-300.0,0.00037597,2]
[393593067,1762824790476,-2000.0,0.00038,2]
[393593068,1762824790486,-2000.0,0.00038,2]
[393593069,1762824790495,-2000.0,0.00038,2]
[393593070,1762824790504,-2000.0,0.00038,2]
[393593071,1762824790514,-2000.0,0.00038,2]
[393593072,1762824790524,-2000.0,0.00038,2]
[393593073,1762824790533,-2000.0,0.00038,2]
[393593074,1762824790543,-2000.0,0.00038,2]
[393593075,1762824790552,-2000.0,0.00038,2]
[393593076,1762824790562,-2000.0,0.00038,2]
[393593077,1762824790571,-2000.0,0.00038,2]
[393593078,1762824790581,-239.34590936,0.000381,33]
[393593079,1762824790591,-500.0,0.00038128,30]
[393593080,1762824790600,-300.0,0.00038148,2]
[393593081,1762824790610,-300.0,0.00038225,2]
[393593082,1762824790619,-300.0,0.00038247,2]
[393593083,1762824790628,-1250.07,0.00038318,2]
[393593084,1762824790640,-500.0,0.00038355,2]
[393593085,1762824790649,-1000.0,0.00038356,2]
[393593086,1762824790659,-1000.0,0.00038356,2]
[393593087,1762824790669,-1000.0,0.00038356,2]
[393593088,1762824790678,-1000.0,0.00038356,2]
[393593089,1762824790687,-1000.0,0.00038356,2]
[393593090,1762824790696,-1000.0,0.00038356,2]
[393593091,1762824790706,-1000.0,0.00038356,2]
[393593092,1762824790715,-1000.0,0.00038356,2]
[393593093,1762824790724,-1000.0,0.00038356,2]
[393593094,1762824790733,-1000.0,0.00038356,2]
[393593095,1762824790743,-1000.0,0.00038356,2]
[393593096,1762824790752,-1000.0,0.00038356,2]
[393593097,1762824790761,-1028.37693784,0.00038356,2]
[393593098,1762824790770,-500.0,0.00038356,2]
[393593099,1762824790780,-500.0,0.00038356,2]
[393593100,1762824790789,-500.0,0.00038356,2]
[393593101,1762824790798,-498.6504868,0.00038356,2]
[393593102,1762824790807,-882.94,0.00038356,2]
[393593103,1762824790817,-882.94,0.00038356,2]
[393593104,1762824790826,-882.94,0.00038356,2]
[393593105,1762824790836,-882.94,0.00038356,2]
[393593106,1762824790845,-882.94,0.00038356,2]
[393593107,1762824790854,-882.94,0.00038356,2]
[393593108,1762824790864,-882.94,0.00038356,2]
[393593109,1762824790873,-882.94,0.00038356,2]
[393593110,1762824790882,-882.94,0.00038356,2]
[393593111,1762824790892,-882.94,0.00038356,2]
[393593112,1762824790902,-882.94,0.00038356,2]
[393593113,1762824790911,-882.94,0.00038356,2]
[393593114,1762824790920,-882.94,0.00038356,2]
[393593115,1762824790930,-882.94,0.00038356,2]
[393593116,1762824790939,-882.94,0.00038356,2]
[393593117,1762824790949,-882.94,0.00038356,2]
[393593118,1762824790958,-882.94,0.00038356,2]
[393593119,1762824790967,-882.94,0.00038356,2]
[393593120,1762824790976,-882.94,0.00038356,2]
[393593121,1762824790986,-882.94,0.00038356,2]
[393593122,1762824790995,-882.94,0.00038356,2]
[393593123,1762824791005,-882.94,0.00038356,2]
[393593124,1762824791014,-882.94,0.00038356,2]
[393593125,1762824791023,-883.14103256,0.00038356,2]
[393593126,1762824791032,-300.0,0.00038384,2]
[393593127,1762824791042,-500.0,0.00038593,30]
[393593128,1762824791052,-1250.07,0.00038604,2]
[393593129,1762824791061,-300.0,0.00038625,2]
[393593130,1762824791071,-500.0,0.00038958,30]
[393593131,1762824791080,-40000.0,0.0003899,2]
[393593132,1762824791089,-27866.10163114,0.00039,2]
[393593133,1762824791099,-168.0,0.00039,2]
[393593134,1762824791108,-2561.04127503,0.00039025,30]
[393593135,1762824791117,-300.0,0.00039032,2]
[393593136,1762824791126,-1750.7,0.00039271,2]
[393593137,1762824791136,-15916.52593556,0.00039289,2]
[393593138,1762824791145,-300.0,0.00039305,2]
[393593139,1762824791159,-150.0,0.00039333,2]
[393593140,1762824791169,-820.0,0.0003935,2]
[393593141,1762824791178,-1597.0,0.0003935,2]
[393593142,1762824791189,-628.0,0.0003935,2]
[393593143,1762824791198,-543.831,0.0003935,2]
[393593144,1762824791207,-300.0,0.00039483,2]
[393593145,1762824791216,-188.58161393,0.00039589,7]
[393593146,1762824791226,-151.66363284,0.00039608,2]
[393593147,1762824791235,-500.0,0.00039616,30]
[393593148,1762824791245,-188.58161393,0.00039629,7]
[393593149,1762824791255,-300.0,0.00039643,2]
[393593150,1762824791266,-404.32919254,0.00039652,2]
[393593151,1762824791276,-500.0,0.00039653,2]
[393593152,1762824791286,-500.0,0.00039653,2]
[393593153,1762824791295,-500.0,0.00039653,2]
[393593154,1762824791305,-500.0,0.00039653,2]
[393593155,1762824791313,-500.0,0.00039653,2]
[393593156,1762824791323,-500.0,0.00039653,2]
[393593157,1762824791332,-500.0,0.00039653,2]
[393593158,1762824791343,-500.0,0.00039653,2]
[393593159,1762824791353,-500.0,0.00039653,2]
[393593160,1762824791363,-500.0,0.00039653,2]
[393593161,1762824791372,-500.0,0.00039653,2]
[393593162,1762824791381,-500.0,0.00039653,2]
[393593163,1762824791392,-500.0,0.00039653,2]
[393593164,1762824791401,-500.0,0.00039653,2]
[393593165,1762824791411,-500.0,0.00039653,2]
[393593166,1762824791420,-500.0,0.00039653,2]
[393593167,1762824791429,-500.0,0.00039653,2]
[393593168,1762824791439,-500.0,0.00039653,2]
[393593169,1762824791449,-500.0,0.00039653,2]
[393593170,1762824791458,-446.48208693,0.00039653,2]
[393593171,1762824791468,-500.0,0.00039653,2]
[393593172,1762824791477,-500.0,0.00039653,2]
[393593173,1762824791487,-613.32851672,0.00039653,2]
[393593174,1762824791496,-1374.1,0.00039653,2]
[393593175,1762824791506,-1374.1,0.00039653,2]
[393593176,1762824791515,-1374.1,0.00039653,2]
[393593177,1762824791525,-1374.1,0.00039653,2]
[393593178,1762824791535,-1374.1,0.00039653,2]
[393593179,1762824791545,-1374.1,0.00039653,2]
[393593180,1762824791555,-1374.1,0.00039653,2]
[393593181,1762824791564,-1374.1,0.00039653,2]
[393593182,1762824791575,-1374.1,0.00039653,2]
[393593183,1762824791593,-1374.1,0.00039653,2]
[393593184,1762824791603,-1374.1,0.00039653,2]
[393593185,1762824791612,-1374.1,0.00039653,2]
[393593186,1762824791621,-1374.1,0.00039653,2]
[393593187,1762824791631,-1374.1,0.00039653,2]
[393593188,1762824791644,-1374.1,0.00039653,2]
[393593189,1762824791655,-1374.1,0.00039653,2]
[393593190,1762824791665,-1374.1,0.00039653,2]
[393593191,1762824791675,-1374.1,0.00039653,2]
[393593192,1762824791684,-1374.1,0.00039653,2]
[393593193,1762824791694,-1374.1,0.00039653,2]
[393593194,1762824791704,-1374.1,0.00039653,2]
[393593195,1762824791713,-1374.1,0.00039653,2]
[393593196,1762824791723,-1374.1,0.00039653,2]
[393593197,1762824791733,-1374.23454808,0.00039653,2]
[393593198,1762824791742,-807.34,0.00039654,2]
[393593199,1762824791751,-300.0,0.0003968,2]
[393593200,1762824791761,-72152.34804435,0.00039702,2]
[393593201,1762824791770,-72152.34804435,0.00039702,2]
[393593202,1762824791780,-72152.34804435,0.00039702,2]
[393593203,1762824791789,-72152.34804435,0.00039702,2]
[393593204,1762824791800,-11248.3109003,0.00039707,29]
[393593205,1762824791810,-15316922.85772792,0.00039707,7]
[393593206,1762824791819,-441.02622151,0.00039707,7]
[393593207,1762824791829,-5307.85099564,0.00039707,14]
[393593208,1762824791838,-200.89273114,0.00039707,2]
[393593209,1762824791848,-20333464.90093844,0.00039707,7]
[393593210,1762824791858,-10000030.0,0.00039707,7]
[393593211,1762824791867,-6914.514351,0.00039707,4]
[393593212,1762824791878,-202.0187098,0.00039707,10]
[393593213,1762824791889,-24000000.0,0.00039707,7]
[393593214,1762824791899,-185.41205128,0.00039707,2]
[393593215,1762824791909,-397.60060001,0.00039707,2]
[393593216,1762824791920,-1210.0,0.00039707,2]
[393593217,1762824791930,-714.83506936,0.00039707,2]
[393593218,1762824791940,-368.08917112,0.00039707,2]
[393593219,1762824791950,-1293.82252642,0.00039707,2]
[393593220,1762824791960,-354.18239597,0.00039707,2]
[393593221,1762824791970,-2831.5089889,0.00039707,2]
[393593222,1762824791980,-8141.39989561,0.00039707,7]
[393593223,1762824791990,-635.52286282,0.00039707,6]
[393593224,1762824792000,-6742.01048683,0.00039707,7]
[393593225,1762824792010,-1545.96537964,0.00039707,2]
[393593226,1762824792020,-1046.98708671,0.00039707,2]
[393593227,1762824792029,-5273.73264311,0.00039707,2]
[393593228,1762824792039,-352.55243973,0.00039707,2]
[393593229,1762824792048,-2496.33584974,0.00039707,2]
[393593230,1762824792058,-3813.53749437,0.00039707,7]
[393593231,1762824792067,-2748.80483798,0.00039707,2]
[393593232,1762824792076,-153.84444367,0.00039707,2]
[393593233,1762824792086,-1095.74131858,0.00039707,7]
[393593234,1762824792096,-1705.54309345,0.00039707,2]
[393593235,1762824792106,-253.31761954,0.00039707,2]
[393593236,1762824792116,-500.0,0.00039707,2]
[393593237,1762824792125,-1282.49048993,0.00039707,2]
[393593238,1762824792138,-247.65735196,0.00039707,2]
[393593239,1762824792147,-1059.04079585,0.00039707,2]
[393593240,1762824792156,-554.41230051,0.00039707,2]
[393593241,1762824792166,-9386.52880743,0.00039707,2]
[393593242,1762824792176,-1333.56369511,0.00039707,2]
[393593243,1762824792186,-3476.69929386,0.00039707,2]
[393593244,1762824792195,-2232.80868349,0.00039707,2]
[393593245,1762824792205,-760.02770602,0.00039707,2]
[393593246,1762824792214,-1951.54193213,0.00039707,2]
[393593247,1762824792224,-187.11905734,0.00039707,2]
[393593248,1762824792233,-643.0,0.00039707,2]
[393593249,1762824792243,-986.72137132,0.00039707,2]
[393593250,1762824792252,-582.57114143,0.00039707,2]
[393593251,1762824792263,-1865.8920835,0.00039707,2]
[393593252,1762824792274,-3294.34383853,0.00039707,2]
[393593253,1762824792284,-178.28073408,0.00039707,2]
[393593254,1762824792294,-426.73658889,0.00039707,2]
[393593255,1762824792303,-7390.61035558,0.00039707,2]
[393593256,1762824792314,-550.0,0.00039707,2]
[393593257,1762824792323,-1025.23535413,0.00039707,2]
[393593258,1762824792333,-1064.51525981,0.00039707,7]
[393593259,1762824792342,-232.61443393,0.00039707,2]
[393593260,1762824792353,-176.53533064,0.00039707,2]
[393593261,1762824792362,-496.26809213,0.00039707,3]
[393593262,1762824792372,-381.35344658,0.00039707,2]
[393593263,1762824792381,-1493.01975443,0.00039707,2]
[393593264,1762824792392,-1049.85627398,0.00039707,2]
[393593265,1762824792402,-1196.12983262,0.00039707,2]
[393593266,1762824792411,-240.07499823,0.00039707,3]
[393593267,1762824792421,-557.00747958,0.00039707,7]
[393593268,1762824792431,-409.25305011,0.00039707,2]
[393593269,1762824792440,-1507.24398878,0.00039707,2]
[393593270,1762824792450,-2379.53468412,0.00039707,7]
[393593271,1762824792460,-2479.1258032,0.00039707,2]
[393593272,1762824792469,-206.24535302,0.00039707,2]
[393593273,1762824792480,-877.79680895,0.00039707,2]
[393593274,1762824792490,-287.53356076,0.00039707,2]
[393593275,1762824792500,-1039.72348778,0.00039707,7]
[393593276,1762824792509,-5782.25034228,0.00039707,2]
[393593277,1762824792519,-4656.56387334,0.00039707,2]
[393593278,1762824792529,-1051.89576081,0.00039707,2]
[393593279,1762824792538,-2209.15014694,0.00039707,2]
[393593280,1762824792548,-890.99663351,0.00039707,2]
[393593281,1762824792557,-468.30897367,0.00039707,2]
[393593282,1762824792567,-150.0,0.00039707,2]
[393593283,1762824792577,-160.0,0.00039707,2]
[393593284,1762824792587,-202.83309321,0.00039707,2]
[393593285,1762824792597,-755.15833281,0.00039707,2]
[393593286,1762824792606,-4266.0,0.00039707,2]
[393593287,1762824792616,-2270.42038419,0.00039707,2]
[393593288,1762824792626,-151.80842518,0.00039707,2]
[393593289,1762824792636,-185.01647313,0.00039707,2]
[393593290,1762824792645,-3360.23702509,0.00039707,2]
[393593291,1762824792656,-10595.50227617,0.00039707,2]
[393593292,1762824792665,-575.82595458,0.00039707,5]
[393593293,1762824792675,-205271.75003106,0.00039707,2]
[393593294,1762824792686,-1613.040985,0.00039707,10]
[393593295,1762824792695,-124060.76322352,0.00039707,2]
[393593296,1762824792707,-10810.83492692,0.00039707,3]
[393593297,1762824792717,-2028.14447056,0.00039707,5]
[393593298,1762824792727,-729.35817595,0.00039707,10]
[393593299,1762824792736,-29284.40635422,0.00039707,2]
[393593300,1762824792746,-545.80115667,0.00039707,7]
[393593301,1762824792756,-219948.53429481,0.00039707,2]
[393593302,1762824792766,-998.27625851,0.00039707,5]
[393593303,1762824792776,-600.0,0.00039707,5]
[393593304,1762824792785,-500.0,0.00039707,5]
[393593305,1762824792795,-1221.0,0.00039707,4]
[393593306,1762824792804,-1000.0,0.00039707,10]
[393593307,1762824792814,-16305.25170008,0.00039707,7]
[393593308,1762824792824,-13042.57224629,0.00039707,2]
[393593309,1762824792833,-15149.43532366,0.00039707,3]
[393593310,1762824792843,-2004.54474205,0.00039707,4]
[393593311,1762824792852,-500.0,0.00039707,10]
[393593312,1762824792862,-19423.42720642,0.00039707,5]
[393593313,1762824792873,-26107.22380961,0.00039707,7]
[393593314,1762824792883,-808223.66222143,0.00039707,2]
[393593315,1762824792894,-997627.64534098,0.00039707,2]
[393593316,1762824792903,-10877.55772851,0.00039707,2]
[393593317,1762824792913,-172669.2562566,0.00039707,2]
[393593318,1762824792923,-15168.42534936,0.00039707,2]
[393593319,1762824792932,-476.77602748,0.00039707,7]
[393593320,1762824792941,-223.63598591,0.00039707,5]
[393593321,1762824792951,-155839.30987593,0.00039707,14]
[393593322,1762824792961,-1104.56389695,0.00039707,5]
[393593323,1762824792970,-223.31679339,0.00039707,7]
[393593324,1762824792980,-25314.33602672,0.00039707,5]
[393593325,1762824792989,-5299.4768165,0.00039707,4]
[393593326,1762824792999,-351.23930139,0.00039707,7]
[393593327,1762824793009,-238.97836811,0.00039707,7]
[393593328,1762824793019,-24787.18847171,0.00039707,2]
[393593329,1762824793028,-20609.05441251,0.00039707,2]
[393593330,1762824793038,-678.84641798,0.00039707,5]
[393593331,1762824793047,-12836.51718778,0.00039707,2]
[393593332,1762824793057,-490.29845142,0.00039707,7]
[393593333,1762824793067,-504.19219805,0.00039707,7]
[393593334,1762824793076,-499.14555483,0.00039707,5]
[393593335,1762824793086,-3053921.6744665,0.00039707,7]
[393593336,1762824793216,-952.2860969,0.00039708,2]
[393593337,1762824793225,-459.02,0.00039708,120]
[393593338,1762824793234,-8150.79815601,0.00039713,7]
[393593339,1762824794460,-250060.76852207,0.00039713,7]
[393593340,1762824794472,-176915.54128946,0.00039713,7]
[393593341,1762824794489,-766.36239535,0.00039713,7]
[393593342,1762824794501,-641.99246739,0.00039713,7]
[393593343,1762824794512,-1587.03359657,0.00039713,7]
[393593344,1762824794526,-6103.86638102,0.00039713,7]
[393593345,1762824794538,-314.47,0.00039713,7]
[393593346,1762824794550,-2693.98920898,0.00039713,7]
[393593347,1762824794562,-627.54332551,0.00039713,7]
[393593348,1762824794574,-3711.32268583,0.00039713,7]
[393593349,1762824794591,-985.28629075,0.00039713,7]
[393593350,1762824794604,-321.36249677,0.00039713,7]
[393593353,1762824796228,-300.0,0.00014999,2]
[393593354,1762824796255,-58.68384251,0.00014999,2]
[393593355,1762824799038,275.7,0.00030137,120]
[393593356,1762824799114,569.9536216,0.00030136,120]
[393593401,1762825560980,509.30356642,0.00030133,120]
[393593409,1762825832164,-1020.0,0.000162,2]
[393593410,1762825832174,-1000.0,0.000164,2]
[393593411,1762825832183,-1000.0,0.000166,2]
[393593412,1762825832192,-1759.0,0.000168,2]
[393593414,1762825832202,-250.0,0.00017,2]
[393593415,1762825832212,-250.0,0.00017052,2]
[393593416,1762825832223,-1200.0,0.00017872,2]
[393593417,1762825832232,-300.0,0.00017898,2]
[393593418,1762825832242,-500.0,0.00017899,2]
[393593419,1762825832251,-341.31615749,0.00017899,2]
[393593420,1762825832262,-425.34553311,0.00017899,2]
[393593421,1762825832273,-500.0,0.00017899,2]
[393593422,1762825832282,-500.0,0.00017899,2]
[393593423,1762825832294,-399.1568,0.00017899,2]
[393593424,1762825832304,-233299.1662,0.000179,2]
[393593425,1762825832314,-162.0,0.00017973,2]
[393593426,1762825832324,-500.0,0.00017999,2]
[393593427,1762825832334,-500.0,0.00017999,2]
[393593428,1762825832343,-500.0,0.00017999,2]
[393593429,1762825832353,-500.0,0.00017999,2]
[393593430,1762825832362,-500.0,0.00017999,2]
[393593431,1762825832372,-500.0,0.00017999,2]
[393593432,1762825832599,-500.0,0.00017999,2]
[393593433,1762825832610,-500.0,0.00017999,2]
[393593434,1762825832622,-500.0,0.00017999,2]
[393593435,1762825832631,-582.49518118,0.00017999,2]
[393593436,1762825832641,-999.0,0.00018312,3]
[393593437,1762825832652,-153.58,0.00018379,2]
[393593438,1762825832662,-232.74487646,0.0001887,2]
[393593439,1762825832672,-314.94741425,0.00018942,2]
[393593440,1762825832681,-423.03095329,0.00018942,2]
[393593441,1762825832692,-9398.81472376,0.00019,2]
[393593442,1762825832702,-300.0,0.00019,2]
[393593444,1762825832713,-517.50055234,0.00019059,2]
[393593445,1762825832722,-503.74538051,0.00019358,2]
[393593447,1762825832732,-473.60389037,0.00019358,2]
[393593449,1762825832742,-503.59184931,0.00019358,2]
[393593451,1762825832751,-502.69404323,0.00019358,2]
[393593453,1762825832761,-506.74000895,0.00019358,2]
[393593455,1762825832771,-500.0,0.00019358,2]
[393593457,1762825832780,-293.0,0.00019531,2]
[393593459,1762825832791,-566.0,0.00019598,2]
[393593461,1762825832801,-1010.0,0.000197,2]
[393593463,1762825832810,-1000.0,0.00019906,2]
[393593465,1762825832819,-198.08070908,0.00020125,2]
[393593467,1762825832829,-306.39833594,0.0002042,2]
[393593469,1762825832839,-1500.0,0.00020454,2]
[393593471,1762825832848,-500.0,0.0002052,2]
[393593473,1762825832857,-500.0,0.0002052,2]
[393593475,1762825832867,-152.73378545,0.0002052,2]
[393593477,1762825832877,-154.21972725,0.0002052,2]
[393593479,1762825832886,-500.0,0.0002052,2]
[393593481,1762825832896,-150.0,0.0002052,2]
[393593483,1762825832906,-233.17505471,0.0002052,2]
[393593485,1762825832916,-152.82438448,0.0002052,2]
[393593487,1762825832926,-154.09491717,0.0002052,2]
[393593489,1762825832936,-150.0,0.0002052,2]
[393593491,1762825832946,-152.54607506,0.0002052,2]
[393593493,1762825832956,-153.6035301,0.0002052,2]
[393593495,1762825832966,-151.18385876,0.0002052,2]
[393593497,1762825832976,-212.23433046,0.0002052,2]
[393593499,1762825832985,-150.33144457,0.0002052,2]
[393593501,1762825832995,-150.0,0.0002052,2]
[393593503,1762825833005,-1317.0,0.0002052,2]
[393593505,1762825833015,-574.0,0.0002052,2]
[393593507,1762825833024,-3426.0,0.0002052,2]
[393593509,1762825833034,-608.0,0.0002052,2]
[393593511,1762825833049,-1518.418,0.0002052,2]
[393593513,1762825833058,-824.0,0.0002052,2]
[393593515,1762825833068,-6664.0,0.0002052,2]
[393593517,1762825833079,-2143.0,0.0002052,2]
[393593519,1762825833088,-644.402,0.0002052,2]
[393593521,1762825833098,-500.0,0.00020657,2]
[393593523,1762825833108,-500.0,0.00020657,2]
[393593525,1762825833117,-500.0,0.00020657,2]
[393593527,1762825833128,-150.53727216,0.00020657,2]
[393593529,1762825833138,-150.0,0.00020657,2]
[393593531,1762825833148,-233.70164035,0.00020794,2]
[393593533,1762825833160,-437.74916461,0.00020794,2]
[393593535,1762825833169,-571.50816602,0.00020794,2]
[393593537,1762825833179,-202.61489532,0.00020794,2]
[393593539,1762825833188,-1000.0,0.0002083,2]
[393593541,1762825833197,-2000.0,0.00021002,2]
[393593543,1762825833207,-2500.0,0.0002155,2]
[393593545,1762825833216,-2362.40465512,0.00022098,2]
[393593547,1762825833226,-306.39833587,0.00023158,2]
[393593549,1762825833237,-222.78,0.00023416,2]
[393593551,1762825833249,-1000.0,0.00023434,2]
[393593553,1762825833261,-1317.0,0.0002352,2]
[393593556,1762825833273,-574.0,0.0002352,2]
[393593557,1762825833284,-3426.0,0.0002352,2]
[393593559,1762825833301,-608.0,0.0002352,2]
[393593562,1762825833312,-6664.0,0.0002352,2]
[393593564,1762825833324,-2143.0,0.0002352,2]
[393593566,1762825833335,-1142.1,0.000238,30]
[393593567,1762825833346,-4734.12656372,0.00024656,2]
[393593569,1762825833357,-192.95,0.0002467,2]
[393593572,1762825833369,-150.12918919,0.00024773,2]
[393593574,1762825833380,-13178.9181927,0.000248,3]
[393593576,1762825833394,-13764.0529293,0.000248,3]
[393593578,1762825833404,-12122.55710438,0.00025011,2]
[393593580,1762825833414,-13471.485561,0.00025101,3]
[393593582,1762825833424,-157.79206077,0.00025659,2]
[393593584,1762825833434,-168.0,0.00025759,2]
[393593586,1762825833446,-168.0,0.00025854,2]
[393593588,1762825833456,-306.39833587,0.00025897,2]
[393593589,1762825833466,-1000.0,0.00026037,2]
[393593590,1762825833477,-168.0,0.00026297,2]
[393593591,1762825833487,-1317.0,0.0002652,2]
[393593592,1762825833497,-574.0,0.0002652,2]
[393593593,1762825833507,-3426.0,0.0002652,2]
[393593594,1762825833517,-608.0,0.0002652,2]
[393593595,1762825833526,-1244.207,0.0002652,2]
[393593596,1762825833536,-2143.0,0.0002652,2]
[393593597,1762825833553,-2293.96105088,0.00026621,3]
[393593598,1762825833565,-11177.52451012,0.00026621,3]
[393593600,1762825833575,-12122.55710431,0.00026631,2]
[393593602,1762825833585,-168.0,0.00027141,2]
[393593604,1762825833596,-262.29,0.00027397,80]
[393593606,1762825833617,-443.09,0.00027412,2]
[393593608,1762825833636,-153.58,0.00027568,2]
[393593611,1762825833646,-13471.485561,0.00028241,3]
[393593612,1762825833656,-12122.55710431,0.00028251,2]
[393593614,1762825833667,-157.79206075,0.00028445,2]
[393593616,1762825833677,-198.08070908,0.00028502,2]
[393593618,1762825833686,-306.39833587,0.00028635,2]
[393593620,1762825833696,-1000.0,0.00028641,2]
[393593622,1762825833706,-413.08,0.00029467,2]
[393593624,1762825833716,-1317.0,0.0002952,2]
[393593626,1762825833725,-574.0,0.0002952,2]
[393593628,1762825833735,-3426.0,0.0002952,2]
[393593631,1762825833746,-608.0,0.0002952,2]
[393593632,1762825833756,-2143.0,0.0002952,2]
[393593635,1762825833767,-13471.485561,0.0002986,3]
[393593637,1762825833777,-12122.55710431,0.0002987,2]
[393593638,1762825833786,-389.79967028,0.00030133,7]
[393593641,1762825833802,-110.20032972,0.00030133,7]
[393593643,1762825833813,-223.22,0.00030137,30]
[393593645,1762825833823,-14.20606231,0.00030289,2]
[393593647,1762825833835,-459.60393769,0.00030289,2]
[393593649,1762825833845,-27.63774231,0.00030822,80]
[393593651,1762825833858,-234.65225769,0.00030822,80]
[393593653,1762825833867,-157.79206075,0.00031231,15]
[393593655,1762825833877,-1000.0,0.00031245,2]
[393593657,1762825833887,-223.22,0.00031328,30]
[393593659,1762825833896,-306.39833587,0.00031374,2]
[393593661,1762825833906,-1114.78617079,0.000314,30]
[393593664,1762825833917,-434.95487423,0.000314,30]
[393593666,1762825833929,-1876.55895498,0.000314,30]
[393593668,1762825833938,-19111.0,0.000314,2]
[393593670,1762825833949,-6010.85986679,0.0003148,3]
[393593671,1762825833961,-2156.27335295,0.0003148,3]
[393593672,1762825833973,-823.88404497,0.0003148,3]
[393593673,1762825833984,-1280.95075832,0.0003148,3]
[393593674,1762825833996,-1360.08995707,0.0003148,3]
[393593675,1762825834008,-1136.25040493,0.0003148,3]
[393593676,1762825834020,-703.17717597,0.0003148,3]
[393593678,1762825834030,-6329.72083355,0.0003149,2]
[393593680,1762825834045,-1066.83826768,0.0003149,2]
[393593682,1762825834057,-396.43020003,0.0003149,2]
[393593684,1762825834069,-3150.28435755,0.0003149,2]
[393593686,1762825834081,-1179.2834455,0.0003149,2]
[393593687,1762825834091,-151.04,0.00031996,2]
[393593688,1762825834100,-150.0,0.00031996,2]
[393593689,1762825834110,-168.37751404,0.000321,3]
[393593690,1762825834121,-311.666,0.000321,3]
[393593691,1762825834137,-2020.68829915,0.000321,3]
[393593692,1762825834148,-3015.26818681,0.000321,3]
[393593693,1762825834157,-264.73183319,0.0003234,3]
[393593696,1762825838078,-900.0,0.0003234,3]
[393593698,1762825838236,-455.35966319,0.0003234,3]
[393593699,1762825838290,-1105.85095932,0.0003234,3]
[393593824,1762825840285,-164.41830001,0.00017899,2]
[393593825,1762825840296,-384.42911935,0.0003234,3]
[393593826,1762825840338,-2131.55,0.0003234,3]
[393593827,1762825840656,-8229.56398595,0.0003234,3]
[393593828,1762825840666,-1090.74425386,0.0003252,2]
[393593839,1762825843278,-620.87859331,0.0002052,2]
[393593841,1762825843548,-459.00460909,0.0002052,2]
[393593842,1762825843562,-109.1167976,0.0002052,2]
[393593843,1762825843571,-363.36161205,0.0002352,2]
[393593844,1762825843649,-825.63838795,0.0002352,2]
[393593846,1762825843658,-1189.0,0.0002652,2]
[393593847,1762825843666,-1189.0,0.0002952,2]
[393593848,1762825843675,-226.25574614,0.0003252,2]
[393593849,1762825843684,-574.0,0.0003252,2]
[393593850,1762825843695,-3426.0,0.0003252,2]
[393593851,1762825843704,-608.0,0.0003252,2]
[393593852,1762825843713,-2143.0,0.0003252,2]
[393593853,1762825843722,-223.22,0.00032522,30]
[393593854,1762825843732,-1908.533,0.00032544,32]
[393593855,1762825843741,-523.116,0.00032544,32]
[393593856,1762825843751,-5414.23836591,0.000328,5]
[393593857,1762825846396,-602.0,0.0003252,2]
[393593858,1762825846408,-587.0,0.0003252,2]
[393593859,1762825846418,-101.76163409,0.000328,5]
[393593860,1762825846429,-1665.63336591,0.00032811,3]
[393593861,1762825846440,-2983.4383552,0.00032811,3]
[393593862,1762825846488,-5324.99999999,0.00032811,3]